[Event "Titled Tuesday Blitz April 18 Late 2023"]
[White "Fajdetic, Hrvoje"]
[Black "Karas, Marek"]
[WhiteFideId "14501945"]
[BlackFideId "14928558"]
[WhiteElo "2185"]
[BlackElo "2233"]
[Result "0-1"]
[Round "02"]
[TimeControl "180+2"]
[Date "2023.04.18"]
[WhiteClock "0:00:04"]
[BlackClock "0:01:11"]

1. d4 {[%clk 0:02:51]}  Nf6 {[%clk 0:02:59]} 2. Bf4 {[%clk 0:02:50]}  d5 {[%clk 0:02:59]} 3. e3 {[%clk 0:02:50]}  c5 {[%clk 0:02:58]} 4. Nc3 {[%clk 0:02:50]}  cxd4 {[%clk 0:02:57]} 5. exd4 {[%clk 0:02:51]}  a6 {[%clk 0:02:54]} 6. Bd3 {[%clk 0:02:50]}  Nc6 {[%clk 0:02:54]} 7. Nce2 {[%clk 0:02:50]}  Bg4 {[%clk 0:02:51]} 8. c3 {[%clk 0:02:43]}  e6 {[%clk 0:02:49]} 9. f3 {[%clk 0:02:39]}  Bh5 {[%clk 0:02:48]} 10. g4 {[%clk 0:02:29]}  Bg6 {[%clk 0:02:47]} 11. h4 {[%clk 0:02:29]}  Bxd3 {[%clk 0:02:46]} 12. Qxd3 {[%clk 0:02:29]}  Bd6 {[%clk 0:02:44]} 13. Nh3 {[%clk 0:02:24]}  Bxf4 {[%clk 0:02:37]} 14. Nhxf4 {[%clk 0:02:25]}  Qd6 {[%clk 0:02:31]} 15. g5 {[%clk 0:02:24]}  Nd7 {[%clk 0:02:30]} 16. Nh5 {[%clk 0:02:19]}  g6 {[%clk 0:02:27]} 17. Nhf4 {[%clk 0:02:09]}  O-O-O {[%clk 0:02:25]} 18. O-O-O {[%clk 0:02:08]}  Kb8 {[%clk 0:02:24]} 19. h5 {[%clk 0:02:05]}  Rc8 {[%clk 0:02:20]} 20. Kb1 {[%clk 0:02:03]}  Qe7 {[%clk 0:02:18]} 21. Rdg1 {[%clk 0:01:56]}  Nb6 {[%clk 0:02:07]} 22. Nc1 {[%clk 0:00:59]}  Nc4 {[%clk 0:01:59]} 23. Nfe2 {[%clk 0:00:51]}  Qc7 {[%clk 0:01:55]} 24. f4 {[%clk 0:00:48]}  Qb6 {[%clk 0:01:54]} 25. b3 {[%clk 0:00:31]}  Nd6 {[%clk 0:01:54]} 26. Ng3 {[%clk 0:00:21]}  Na7 {[%clk 0:01:51]} 27. Rh2 {[%clk 0:00:20]}  Nab5 {[%clk 0:01:49]} 28. Nce2 {[%clk 0:00:16]}  Qc6 {[%clk 0:01:46]} 29. Rc1 {[%clk 0:00:14]}  Rhd8 {[%clk 0:01:42]} 30. hxg6 {[%clk 0:00:14]}  hxg6 {[%clk 0:01:41]} 31. Kb2 {[%clk 0:00:10]}  Rc7 {[%clk 0:01:41]} 32. Rc2 {[%clk 0:00:10]}  Rdc8 {[%clk 0:01:40]} 33. Rh1 {[%clk 0:00:11]}  Qb6 {[%clk 0:01:37]} 34. Rhc1 {[%clk 0:00:10]}  Qa5 {[%clk 0:01:34]} 35. a4 {[%clk 0:00:10]}  Na7 {[%clk 0:01:33]} 36. Ra1 {[%clk 0:00:07]}  Nc6 {[%clk 0:01:25]} 37. Rac1 {[%clk 0:00:04]}  Ne7 {[%clk 0:01:24]} 38. Qd2 {[%clk 0:00:03]}  Nef5 {[%clk 0:01:22]} 39. c4 {[%clk 0:00:03]}  Qxd2 {[%clk 0:01:19]} 40. Rxd2 {[%clk 0:00:03]}  dxc4 {[%clk 0:01:19]} 41. d5 {[%clk 0:00:03]}  Nxg3 {[%clk 0:01:15]} 42. Nxg3 {[%clk 0:00:03]}  c3+ {[%clk 0:01:15]} 43. Rxc3 {[%clk 0:00:03]}  Rxc3 {[%clk 0:01:14]} 44. dxe6 {[%clk 0:00:04]}  Rxg3 {[%clk 0:01:11]} 45. Rxd6 {[%clk 0:00:04]}  fxe6 {[%clk 0:01:11]} 46. Rxe6 {[%clk 0:00:04]}  Rf8 {[%clk 0:01:11]} 47. Rxg6 {[%clk 0:00:04]}  Rxf4 {[%clk 0:01:11]} 0-1


[Site "https://www.chess.com"]

[Event "Titled Tuesday Blitz April 18 Late 2023"]
[White "Sonnenschein, Philipp"]
[Black "Garrido, Denis"]
[WhiteFideId "16250877"]
[BlackFideId "601217"]
[WhiteElo "2224"]
[BlackElo "2306"]
[Result "0-1"]
[Round "02"]
[TimeControl "180+2"]
[Date "2023.04.18"]
[WhiteClock "0:00:18"]
[BlackClock "0:00:24"]

1. e4 {[%clk 0:03:00]}  e6 {[%clk 0:02:59]} 2. d4 {[%clk 0:03:01]}  d5 {[%clk 0:02:59]} 3. Nd2 {[%clk 0:03:01]}  Be7 {[%clk 0:02:59]} 4. Bd3 {[%clk 0:02:59]}  c5 {[%clk 0:02:58]} 5. Ngf3 {[%clk 0:02:53]}  Nf6 {[%clk 0:02:45]} 6. exd5 {[%clk 0:02:40]}  Qxd5 {[%clk 0:02:43]} 7. dxc5 {[%clk 0:02:36]}  Nbd7 {[%clk 0:02:35]} 8. O-O {[%clk 0:02:33]}  Nxc5 {[%clk 0:02:31]} 9. Bc4 {[%clk 0:02:33]}  Qd6 {[%clk 0:02:28]} 10. Qe2 {[%clk 0:02:30]}  O-O {[%clk 0:02:27]} 11. Rd1 {[%clk 0:02:30]}  Qc7 {[%clk 0:02:20]} 12. b3 {[%clk 0:02:23]}  b6 {[%clk 0:02:20]} 13. Bb2 {[%clk 0:02:22]}  Bb7 {[%clk 0:02:20]} 14. Nf1 {[%clk 0:02:10]}  Qf4 {[%clk 0:02:11]} 15. Rd4 {[%clk 0:01:54]}  Qh6 {[%clk 0:02:03]} 16. Rad1 {[%clk 0:01:49]}  Rfd8 {[%clk 0:01:56]} 17. Rxd8+ {[%clk 0:01:48]}  Rxd8 {[%clk 0:01:55]} 18. Rxd8+ {[%clk 0:01:48]}  Bxd8 {[%clk 0:01:55]} 19. Ne5 {[%clk 0:01:43]}  Qg5 {[%clk 0:01:39]} 20. Ng3 {[%clk 0:01:43]}  Bc7 {[%clk 0:01:33]} 21. Nf3 {[%clk 0:01:31]}  Qg6 {[%clk 0:01:28]} 22. Ne5 {[%clk 0:01:25]}  Qg5 {[%clk 0:01:28]} 23. Nf3 {[%clk 0:01:19]}  Qf4 {[%clk 0:01:23]} 24. Ne5 {[%clk 0:01:00]}  h6 {[%clk 0:00:53]} 25. Nd3 {[%clk 0:00:58]}  Nxd3 {[%clk 0:00:52]} 26. Qxd3 {[%clk 0:00:51]}  Ng4 {[%clk 0:00:44]} 27. Qe2 {[%clk 0:00:43]}  Bd6 {[%clk 0:00:43]} 28. Bd3 {[%clk 0:00:24]}  Bc5 {[%clk 0:00:31]} 29. Be5 {[%clk 0:00:18]}  Bxf2+ {[%clk 0:00:26]} 30. Kh1 {[%clk 0:00:18]}  Nxe5 {[%clk 0:00:24]} 0-1


[Site "https://www.chess.com"]

[Event "Titled Tuesday Blitz April 18 Late 2023"]
[White "Lenaerts, Lennert"]
[Black "Wang, Alexander J"]
[WhiteFideId "211435"]
[BlackFideId "30955270"]
[WhiteElo "2334"]
[BlackElo "2305"]
[Result "1-0"]
[Round "02"]
[TimeControl "180+2"]
[Date "2023.04.18"]
[WhiteClock "0:02:38"]
[BlackClock "0:01:33"]

1. d4 {[%clk 0:02:57]}  d5 {[%clk 0:02:59]} 2. c4 {[%clk 0:02:57]}  e6 {[%clk 0:02:59]} 3. Nc3 {[%clk 0:02:57]}  c5 {[%clk 0:02:59]} 4. cxd5 {[%clk 0:02:57]}  exd5 {[%clk 0:03:00]} 5. Nf3 {[%clk 0:02:56]}  Nc6 {[%clk 0:02:58]} 6. g3 {[%clk 0:02:57]}  Nf6 {[%clk 0:02:57]} 7. Bg2 {[%clk 0:02:56]}  Be7 {[%clk 0:02:56]} 8. O-O {[%clk 0:02:56]}  O-O {[%clk 0:02:45]} 9. Bg5 {[%clk 0:02:55]}  Be6 {[%clk 0:02:44]} 10. dxc5 {[%clk 0:02:54]}  Bxc5 {[%clk 0:02:24]} 11. Bxf6 {[%clk 0:02:53]}  Qxf6 {[%clk 0:02:22]} 12. Nxd5 {[%clk 0:02:53]}  Qxb2 {[%clk 0:02:08]} 13. Nc7 {[%clk 0:02:53]}  Rad8 {[%clk 0:02:02]} 14. Qc1 {[%clk 0:02:53]}  Qxc1 {[%clk 0:02:00]} 15. Raxc1 {[%clk 0:02:53]}  Ba3 {[%clk 0:01:59]} 16. Nxe6 {[%clk 0:02:52]}  fxe6 {[%clk 0:01:55]} 17. Rc4 {[%clk 0:02:51]}  Rd7 {[%clk 0:01:49]} 18. Bh3 {[%clk 0:02:47]}  Rf6 {[%clk 0:01:42]} 19. Rb1 {[%clk 0:02:46]}  Na5 {[%clk 0:01:40]} 20. Re4 {[%clk 0:02:45]}  Rd6 {[%clk 0:01:33]} 21. Ra4 {[%clk 0:02:38]} 1-0


[Site "https://www.chess.com"]

[Event "Titled Tuesday Blitz April 18 Late 2023"]
[White "Li, Hui"]
[Black "Rios Escobar, Adan"]
[WhiteFideId "15400310"]
[BlackFideId "3403645"]
[WhiteElo "1967"]
[BlackElo "2502"]
[Result "0-1"]
[Round "02"]
[TimeControl "180+2"]
[Date "2023.04.18"]
[WhiteClock "0:00:01"]
[BlackClock "0:00:15"]

1. e4 {[%clk 0:02:29]}  c5 {[%clk 0:02:59]} 2. Nf3 {[%clk 0:02:29]}  d6 {[%clk 0:02:59]} 3. d4 {[%clk 0:02:27]}  cxd4 {[%clk 0:02:59]} 4. Nxd4 {[%clk 0:02:28]}  Nf6 {[%clk 0:03:00]} 5. Nc3 {[%clk 0:02:28]}  a6 {[%clk 0:02:56]} 6. Be2 {[%clk 0:02:28]}  e5 {[%clk 0:02:55]} 7. Nb3 {[%clk 0:02:29]}  Be6 {[%clk 0:02:56]} 8. f4 {[%clk 0:02:28]}  exf4 {[%clk 0:02:50]} 9. Bxf4 {[%clk 0:02:28]}  Nc6 {[%clk 0:02:50]} 10. Nd4 {[%clk 0:02:28]}  Ne5 {[%clk 0:02:44]} 11. O-O {[%clk 0:02:09]}  Be7 {[%clk 0:02:39]} 12. Bxe5 {[%clk 0:01:35]}  dxe5 {[%clk 0:02:36]} 13. Nxe6 {[%clk 0:01:35]}  fxe6 {[%clk 0:02:37]} 14. Qxd8+ {[%clk 0:01:28]}  Rxd8 {[%clk 0:02:37]} 15. Bc4 {[%clk 0:01:29]}  Bc5+ {[%clk 0:02:28]} 16. Kh1 {[%clk 0:01:28]}  Ke7 {[%clk 0:02:29]} 17. Rad1 {[%clk 0:01:13]}  Rd4 {[%clk 0:02:24]} 18. Bd3 {[%clk 0:00:59]}  Rhd8 {[%clk 0:02:17]} 19. Ne2 {[%clk 0:00:58]}  Ra4 {[%clk 0:01:32]} 20. Nc3 {[%clk 0:00:55]}  Rad4 {[%clk 0:01:24]} 21. Ne2 {[%clk 0:00:55]}  Rb4 {[%clk 0:01:24]} 22. b3 {[%clk 0:00:46]}  Rb6 {[%clk 0:01:02]} 23. h3 {[%clk 0:00:37]}  Rbd6 {[%clk 0:01:02]} 24. Ng3 {[%clk 0:00:37]}  b5 {[%clk 0:01:01]} 25. Be2 {[%clk 0:00:32]}  Rxd1 {[%clk 0:01:00]} 26. Rxd1 {[%clk 0:00:33]}  Rxd1+ {[%clk 0:01:00]} 27. Bxd1 {[%clk 0:00:34]}  Bf2 {[%clk 0:01:00]} 28. Nh5 {[%clk 0:00:27]}  Nxe4 {[%clk 0:01:00]} 29. Nxg7 {[%clk 0:00:18]}  Ng3+ {[%clk 0:00:58]} 30. Kh2 {[%clk 0:00:18]}  Kf7 {[%clk 0:00:59]} 31. Nh5 {[%clk 0:00:16]}  Nf1+ {[%clk 0:00:59]} 32. Kh1 {[%clk 0:00:14]}  Ne3 {[%clk 0:01:00]} 33. Bf3 {[%clk 0:00:11]}  Nxc2 {[%clk 0:01:00]} 34. g4 {[%clk 0:00:07]}  Nb4 {[%clk 0:01:00]} 35. Be4 {[%clk 0:00:07]}  Nxa2 {[%clk 0:00:59]} 36. Bxh7 {[%clk 0:00:07]}  Nc1 {[%clk 0:00:58]} 37. Bc2 {[%clk 0:00:06]}  e4 {[%clk 0:00:59]} 38. Kg2 {[%clk 0:00:06]}  e3 {[%clk 0:00:59]} 39. Kf1 {[%clk 0:00:06]}  a5 {[%clk 0:00:59]} 40. Nf4 {[%clk 0:00:06]}  e5 {[%clk 0:00:54]} 41. Nd3 {[%clk 0:00:04]}  Na2 {[%clk 0:00:52]} 42. Nxe5+ {[%clk 0:00:04]}  Ke6 {[%clk 0:00:52]} 43. Nd3 {[%clk 0:00:04]}  Bh4 {[%clk 0:00:48]} 44. Ke2 {[%clk 0:00:04]}  Bg5 {[%clk 0:00:48]} 45. h4 {[%clk 0:00:04]}  Nc3+ {[%clk 0:00:49]} 46. Kf3 {[%clk 0:00:04]}  Bxh4 {[%clk 0:00:49]} 47. Kxe3 {[%clk 0:00:04]}  Bg5+ {[%clk 0:00:49]} 48. Kd4 {[%clk 0:00:03]}  Bf6+ {[%clk 0:00:49]} 49. Ke3 {[%clk 0:00:03]}  Nd5+ {[%clk 0:00:49]} 50. Kd2 {[%clk 0:00:03]}  Bg5+ {[%clk 0:00:49]} 51. Kd1 {[%clk 0:00:04]}  Ne3+ {[%clk 0:00:49]} 52. Kd2 {[%clk 0:00:03]}  Nxg4+ {[%clk 0:00:50]} 53. Kc3 {[%clk 0:00:03]}  Bf6+ {[%clk 0:00:49]} 54. Kd2 {[%clk 0:00:03]}  Bd4 {[%clk 0:00:49]} 55. Nf4+ {[%clk 0:00:03]}  Ke5 {[%clk 0:00:47]} 56. Ne2 {[%clk 0:00:04]}  Be3+ {[%clk 0:00:47]} 57. Kd3 {[%clk 0:00:04]}  Bc5 {[%clk 0:00:45]} 58. Kd2 {[%clk 0:00:04]}  Nf2 {[%clk 0:00:43]} 59. Bd3 {[%clk 0:00:04]}  b4 {[%clk 0:00:40]} 60. Bc4 {[%clk 0:00:04]}  Ne4+ {[%clk 0:00:40]} 61. Kc2 {[%clk 0:00:04]}  Nd6 {[%clk 0:00:38]} 62. Bd3 {[%clk 0:00:04]}  Bf2 {[%clk 0:00:32]} 63. Kb2 {[%clk 0:00:03]}  Bd4+ {[%clk 0:00:28]} 64. Ka2 {[%clk 0:00:03]}  Kd5 {[%clk 0:00:27]} 65. Ng3 {[%clk 0:00:01]}  Bc3 {[%clk 0:00:25]} 66. Nf5 {[%clk 0:00:01]}  Nb7 {[%clk 0:00:21]} 67. Be2 {[%clk 0:00:01]}  Nc5 {[%clk 0:00:21]} 68. Bc4+ {[%clk 0:00:01]}  Ke4 {[%clk 0:00:21]} 69. Nd6+ {[%clk 0:00:02]}  Ke3 {[%clk 0:00:20]} 70. Nb5 {[%clk 0:00:02]}  Kd2 {[%clk 0:00:19]} 71. Nd6 {[%clk 0:00:01]}  Kc2 {[%clk 0:00:19]} 72. Nc8 {[%clk 0:00:01]}  a4 {[%clk 0:00:15]} 0-1


[Site "https://www.chess.com"]

[Event "Titled Tuesday Blitz April 18 Late 2023"]
[White "Petrovic, Aleksa"]
[Black "Sarkar, Justin"]
[WhiteFideId "967629"]
[BlackFideId "2010011"]
[WhiteElo "2309"]
[BlackElo "2189"]
[Result "1-0"]
[Round "02"]
[TimeControl "180+2"]
[Date "2023.04.18"]
[WhiteClock "0:01:16"]
[BlackClock "0:00:02"]

1. d4 {[%clk 0:02:59]}  Nf6 {[%clk 0:02:55]} 2. c4 {[%clk 0:02:59]}  e6 {[%clk 0:02:52]} 3. Nc3 {[%clk 0:02:56]}  Bb4 {[%clk 0:02:50]} 4. Qc2 {[%clk 0:02:56]}  Nc6 {[%clk 0:02:49]} 5. Nf3 {[%clk 0:02:54]}  O-O {[%clk 0:02:29]} 6. a3 {[%clk 0:02:44]}  Bxc3+ {[%clk 0:02:24]} 7. Qxc3 {[%clk 0:02:45]}  d6 {[%clk 0:02:09]} 8. b4 {[%clk 0:02:45]}  e5 {[%clk 0:01:53]} 9. Bb2 {[%clk 0:02:32]}  e4 {[%clk 0:01:33]} 10. Nd2 {[%clk 0:02:13]}  d5 {[%clk 0:01:29]} 11. e3 {[%clk 0:02:10]}  Bf5 {[%clk 0:01:15]} 12. b5 {[%clk 0:01:59]}  Ne7 {[%clk 0:01:13]} 13. a4 {[%clk 0:01:58]}  h5 {[%clk 0:00:46]} 14. h3 {[%clk 0:01:57]}  dxc4 {[%clk 0:00:38]} 15. Bxc4 {[%clk 0:01:46]}  Ned5 {[%clk 0:00:36]} 16. Qb3 {[%clk 0:01:45]}  h4 {[%clk 0:00:32]} 17. Nb1 {[%clk 0:01:40]}  a6 {[%clk 0:00:20]} 18. Nc3 {[%clk 0:01:38]}  Nxc3 {[%clk 0:00:15]} 19. Bxc3 {[%clk 0:01:38]}  axb5 {[%clk 0:00:15]} 20. axb5 {[%clk 0:01:34]}  Rxa1+ {[%clk 0:00:14]} 21. Bxa1 {[%clk 0:01:35]}  c6 {[%clk 0:00:07]} 22. Bc3 {[%clk 0:01:31]}  Nd5 {[%clk 0:00:05]} 23. Bd2 {[%clk 0:01:30]}  Be6 {[%clk 0:00:04]} 24. bxc6 {[%clk 0:01:28]}  bxc6 {[%clk 0:00:03]} 25. O-O {[%clk 0:01:25]}  Qg5 {[%clk 0:00:02]} 26. Kh2 {[%clk 0:01:25]}  f5 {[%clk 0:00:02]} 27. f4 {[%clk 0:01:16]} 1-0


[Site "https://www.chess.com"]

[Event "Titled Tuesday Blitz April 18 Late 2023"]
[White "Bueno, Alfeu Junior Varela"]
[Black "Silva, Caio Henrique Angelico"]
[WhiteFideId "2108879"]
[BlackFideId "22777210"]
[WhiteElo "2175"]
[BlackElo "2096"]
[Result "1/2-1/2"]
[Round "02"]
[TimeControl "180+2"]
[Date "2023.04.18"]
[WhiteClock "0:00:05"]
[BlackClock "0:00:18"]

1. e4 {[%clk 0:02:56]}  c6 {[%clk 0:02:59]} 2. d4 {[%clk 0:02:55]}  d5 {[%clk 0:03:00]} 3. f3 {[%clk 0:02:56]}  g6 {[%clk 0:02:59]} 4. Nc3 {[%clk 0:02:55]}  Bg7 {[%clk 0:02:59]} 5. Be3 {[%clk 0:02:56]}  dxe4 {[%clk 0:02:57]} 6. fxe4 {[%clk 0:02:56]}  Nf6 {[%clk 0:02:58]} 7. Nf3 {[%clk 0:02:55]}  O-O {[%clk 0:02:56]} 8. h3 {[%clk 0:02:49]}  a5 {[%clk 0:02:56]} 9. a4 {[%clk 0:02:38]}  Na6 {[%clk 0:02:56]} 10. Bc4 {[%clk 0:02:36]}  Nb4 {[%clk 0:02:54]} 11. O-O {[%clk 0:02:34]}  b6 {[%clk 0:02:54]} 12. Ng5 {[%clk 0:02:30]}  Ba6 {[%clk 0:02:49]} 13. Bxa6 {[%clk 0:01:53]}  Nxa6 {[%clk 0:02:48]} 14. Qe2 {[%clk 0:01:42]}  Nd7 {[%clk 0:02:40]} 15. e5 {[%clk 0:01:37]}  e6 {[%clk 0:02:34]} 16. Nge4 {[%clk 0:01:37]}  c5 {[%clk 0:02:33]} 17. Rad1 {[%clk 0:01:28]}  cxd4 {[%clk 0:02:33]} 18. Bxd4 {[%clk 0:01:28]}  Qe7 {[%clk 0:02:27]} 19. Nf6+ {[%clk 0:01:23]}  Kh8 {[%clk 0:02:21]} 20. Nxd7 {[%clk 0:01:15]}  Qxd7 {[%clk 0:02:22]} 21. Bc5 {[%clk 0:01:15]}  Nxc5 {[%clk 0:01:59]} 22. Rxd7 {[%clk 0:01:14]}  Nxd7 {[%clk 0:02:00]} 23. Nb5 {[%clk 0:01:04]}  Nxe5 {[%clk 0:01:55]} 24. Rd1 {[%clk 0:01:02]}  Rac8 {[%clk 0:01:53]} 25. c3 {[%clk 0:01:02]}  Kg8 {[%clk 0:01:41]} 26. Rd6 {[%clk 0:00:58]}  Nc4 {[%clk 0:01:40]} 27. Rd7 {[%clk 0:00:58]}  Ne5 {[%clk 0:01:30]} 28. Rb7 {[%clk 0:00:57]}  Rfd8 {[%clk 0:01:24]} 29. Rxb6 {[%clk 0:00:38]}  Nc4 {[%clk 0:01:24]} 30. Rb7 {[%clk 0:00:36]}  Rd2 {[%clk 0:01:15]} 31. Qf3 {[%clk 0:00:36]}  f5 {[%clk 0:01:14]} 32. Nd4 {[%clk 0:00:23]}  e5 {[%clk 0:00:59]} 33. Qd5+ {[%clk 0:00:20]}  Kh8 {[%clk 0:00:58]} 34. Qf7 {[%clk 0:00:17]}  Rg8 {[%clk 0:00:52]} 35. Ne6 {[%clk 0:00:13]}  Nd6 {[%clk 0:00:51]} 36. Qd7 {[%clk 0:00:13]}  Rd1+ {[%clk 0:00:47]} 37. Kh2 {[%clk 0:00:12]}  Nxb7 {[%clk 0:00:39]} 38. Qxd1 {[%clk 0:00:13]}  Bf6 {[%clk 0:00:38]} 39. Qd5 {[%clk 0:00:13]}  Nd8 {[%clk 0:00:34]} 40. Nc7 {[%clk 0:00:10]}  e4 {[%clk 0:00:28]} 41. Qxa5 {[%clk 0:00:10]}  e3 {[%clk 0:00:21]} 42. Qb5 {[%clk 0:00:10]}  Be5+ {[%clk 0:00:20]} 43. Kg1 {[%clk 0:00:10]}  Bxc7 {[%clk 0:00:21]} 44. Kf1 {[%clk 0:00:06]}  Bg3 {[%clk 0:00:18]} 45. Ke2 {[%clk 0:00:06]}  f4 {[%clk 0:00:17]} 46. Qe5+ {[%clk 0:00:04]}  Rg7 {[%clk 0:00:16]} 47. Qe8+ {[%clk 0:00:04]}  Rg8 {[%clk 0:00:16]} 48. Qe5+ {[%clk 0:00:05]}  Rg7 {[%clk 0:00:17]} 49. Qe8+ {[%clk 0:00:05]}  Rg8 {[%clk 0:00:18]} 50. Qe5+ {[%clk 0:00:05]} 1/2-1/2


[Site "https://www.chess.com"]

[Event "Titled Tuesday Blitz April 18 Late 2023"]
[White "Hajiyev, Kanan"]
[Black "Tyagi, Kushan"]
[WhiteFideId "13404148"]
[BlackFideId "2040069"]
[WhiteElo "2103"]
[BlackElo "2290"]
[Result "1-0"]
[Round "02"]
[TimeControl "180+2"]
[Date "2023.04.18"]
[WhiteClock "0:01:29"]
[BlackClock "0:00:01"]

1. d4 {[%clk 0:03:00]}  Nf6 {[%clk 0:02:58]} 2. Nf3 {[%clk 0:03:00]}  e6 {[%clk 0:02:56]} 3. c4 {[%clk 0:03:01]}  b6 {[%clk 0:02:54]} 4. Nc3 {[%clk 0:03:01]}  Bb7 {[%clk 0:02:52]} 5. g3 {[%clk 0:03:01]}  Bb4 {[%clk 0:02:50]} 6. Qc2 {[%clk 0:02:59]}  Ne4 {[%clk 0:02:45]} 7. Bd2 {[%clk 0:02:56]}  f5 {[%clk 0:02:23]} 8. Bg2 {[%clk 0:02:54]}  Nxd2 {[%clk 0:02:15]} 9. Qxd2 {[%clk 0:02:53]}  O-O {[%clk 0:02:12]} 10. O-O {[%clk 0:02:53]}  d6 {[%clk 0:02:11]} 11. a3 {[%clk 0:02:53]}  Bxc3 {[%clk 0:02:10]} 12. Qxc3 {[%clk 0:02:54]}  Nd7 {[%clk 0:02:10]} 13. h4 {[%clk 0:02:50]}  Qe7 {[%clk 0:02:05]} 14. b4 {[%clk 0:02:49]}  c5 {[%clk 0:01:51]} 15. Rfd1 {[%clk 0:02:38]}  Nf6 {[%clk 0:01:44]} 16. Nd2 {[%clk 0:02:17]}  Bxg2 {[%clk 0:01:39]} 17. Kxg2 {[%clk 0:02:18]}  e5 {[%clk 0:01:36]} 18. dxe5 {[%clk 0:02:17]}  dxe5 {[%clk 0:01:34]} 19. Nf3 {[%clk 0:02:17]}  Rfe8 {[%clk 0:01:25]} 20. e3 {[%clk 0:02:13]}  Ne4 {[%clk 0:01:04]} 21. Qb2 {[%clk 0:02:13]}  f4 {[%clk 0:00:53]} 22. exf4 {[%clk 0:02:07]}  exf4 {[%clk 0:00:52]} 23. g4 {[%clk 0:02:08]}  Rad8 {[%clk 0:00:45]} 24. Rxd8 {[%clk 0:02:06]}  Rxd8 {[%clk 0:00:44]} 25. Re1 {[%clk 0:02:05]}  Qb7 {[%clk 0:00:44]} 26. Qe5 {[%clk 0:02:03]}  Nd2 {[%clk 0:00:12]} 27. Qe6+ {[%clk 0:02:03]}  Kf8 {[%clk 0:00:11]} 28. Qf5+ {[%clk 0:02:03]}  Kg8 {[%clk 0:00:11]} 29. Qxf4 {[%clk 0:01:59]}  Rf8 {[%clk 0:00:07]} 30. Qxd2 {[%clk 0:01:51]}  Qxf3+ {[%clk 0:00:07]} 31. Kh2 {[%clk 0:01:42]}  Qxg4 {[%clk 0:00:05]} 32. Qd5+ {[%clk 0:01:42]}  Kh8 {[%clk 0:00:05]} 33. Qg2 {[%clk 0:01:35]}  Qxh4+ {[%clk 0:00:04]} 34. Kg1 {[%clk 0:01:36]}  Qxc4 {[%clk 0:00:04]} 35. Re7 {[%clk 0:01:35]}  Qc1+ {[%clk 0:00:02]} 36. Kh2 {[%clk 0:01:36]}  Qh6+ {[%clk 0:00:02]} 37. Kg1 {[%clk 0:01:37]}  Rd8 {[%clk 0:00:01]} 38. Re1 {[%clk 0:01:29]}  Rf8 {[%clk 0:00:01]} 39. bxc5 {[%clk 0:01:29]} 1-0


[Site "https://www.chess.com"]

[Event "Titled Tuesday Blitz April 18 Late 2023"]
[White "Koutlas, Nikolaos"]
[Black "Nemsko"]
[WhiteFideId "25827138"]
[WhiteElo "2215"]
[BlackElo "2283"]
[Result "1-0"]
[Round "02"]
[TimeControl "180+2"]
[Date "2023.04.18"]
[WhiteClock "0:01:53"]
[BlackClock "0:01:38"]

1. Nf3 {[%clk 0:02:47]}  Nf6 {[%clk 0:02:59]} 2. g3 {[%clk 0:02:45]}  d5 {[%clk 0:02:59]} 3. Bg2 {[%clk 0:02:45]}  e6 {[%clk 0:03:00]} 4. c4 {[%clk 0:02:46]}  Bd6 {[%clk 0:03:00]} 5. O-O {[%clk 0:02:46]}  c5 {[%clk 0:03:01]} 6. d4 {[%clk 0:02:46]}  O-O {[%clk 0:03:00]} 7. cxd5 {[%clk 0:02:46]}  exd5 {[%clk 0:02:59]} 8. Nc3 {[%clk 0:02:47]}  h6 {[%clk 0:02:51]} 9. b3 {[%clk 0:02:45]}  Be6 {[%clk 0:02:50]} 10. Bb2 {[%clk 0:02:42]}  Nc6 {[%clk 0:02:51]} 11. Rc1 {[%clk 0:02:42]}  b6 {[%clk 0:02:41]} 12. Na4 {[%clk 0:02:16]}  Ne4 {[%clk 0:02:27]} 13. dxc5 {[%clk 0:02:13]}  bxc5 {[%clk 0:02:24]} 14. Nd2 {[%clk 0:02:13]}  Nxd2 {[%clk 0:01:56]} 15. Qxd2 {[%clk 0:02:14]}  Rc8 {[%clk 0:01:49]} 16. Nxc5 {[%clk 0:02:11]}  Bxc5 {[%clk 0:01:44]} 17. Rxc5 {[%clk 0:02:11]}  Qb6 {[%clk 0:01:39]} 18. Rfc1 {[%clk 0:02:08]}  Ne7 {[%clk 0:01:38]} 19. Rxc8 {[%clk 0:01:57]}  Rxc8 {[%clk 0:01:39]} 20. Rxc8+ {[%clk 0:01:55]}  Nxc8 {[%clk 0:01:40]} 21. Bxd5 {[%clk 0:01:53]}  Qd6 {[%clk 0:01:38]} 22. Qc3 {[%clk 0:01:53]} 1-0


[Site "https://www.chess.com"]

[Event "Titled Tuesday Blitz April 18 Late 2023"]
[White "Lorenzo De La Riva, Lazaro"]
[Black "Onslow, Alfie"]
[WhiteFideId "2268809"]
[BlackFideId "436976"]
[WhiteElo "2294"]
[BlackElo "2114"]
[Result "0-1"]
[Round "02"]
[TimeControl "180+2"]
[Date "2023.04.18"]
[WhiteClock "0:00:04"]
[BlackClock "0:00:36"]

1. c4 {[%clk 0:03:00]}  c5 {[%clk 0:02:53]} 2. Nc3 {[%clk 0:03:01]}  Nc6 {[%clk 0:02:51]} 3. g3 {[%clk 0:02:59]}  g6 {[%clk 0:02:44]} 4. Bg2 {[%clk 0:03:00]}  Bg7 {[%clk 0:02:44]} 5. e3 {[%clk 0:02:58]}  e5 {[%clk 0:02:42]} 6. Nge2 {[%clk 0:02:56]}  Nge7 {[%clk 0:02:41]} 7. O-O {[%clk 0:02:53]}  O-O {[%clk 0:02:38]} 8. a3 {[%clk 0:02:52]}  d6 {[%clk 0:02:38]} 9. Rb1 {[%clk 0:02:50]}  Be6 {[%clk 0:02:37]} 10. Nd5 {[%clk 0:02:48]}  Qd7 {[%clk 0:02:35]} 11. Re1 {[%clk 0:02:47]}  Bh3 {[%clk 0:02:33]} 12. Bh1 {[%clk 0:02:46]}  f5 {[%clk 0:02:31]} 13. f4 {[%clk 0:02:43]}  e4 {[%clk 0:02:29]} 14. Nec3 {[%clk 0:02:32]}  Nxd5 {[%clk 0:02:28]} 15. Nxd5 {[%clk 0:02:31]}  Ne7 {[%clk 0:02:26]} 16. Nc3 {[%clk 0:02:25]}  d5 {[%clk 0:02:19]} 17. cxd5 {[%clk 0:02:24]}  Nxd5 {[%clk 0:02:19]} 18. Qb3 {[%clk 0:02:24]}  Rad8 {[%clk 0:02:19]} 19. d3 {[%clk 0:02:22]}  Bxc3 {[%clk 0:02:05]} 20. bxc3 {[%clk 0:02:19]}  exd3 {[%clk 0:02:01]} 21. Bd2 {[%clk 0:01:56]}  b6 {[%clk 0:01:40]} 22. c4 {[%clk 0:01:52]}  Nf6 {[%clk 0:01:39]} 23. Rbd1 {[%clk 0:01:41]}  Ne4 {[%clk 0:01:37]} 24. Bc3 {[%clk 0:01:34]}  d2 {[%clk 0:01:18]} 25. Re2 {[%clk 0:01:28]}  Qd3 {[%clk 0:01:18]} 26. Bxe4 {[%clk 0:00:55]}  Qxe2 {[%clk 0:01:14]} 27. Bc6 {[%clk 0:00:37]}  Qxe3+ {[%clk 0:01:03]} 28. Kh1 {[%clk 0:00:37]}  Rd3 {[%clk 0:00:59]} 29. Qb2 {[%clk 0:00:15]}  Rxc3 {[%clk 0:00:50]} 30. Bd5+ {[%clk 0:00:13]}  Rf7 {[%clk 0:00:42]} 31. Qxd2 {[%clk 0:00:05]}  Qxd2 {[%clk 0:00:38]} 32. Rxd2 {[%clk 0:00:06]}  Rc1+ {[%clk 0:00:39]} 33. Rd1 {[%clk 0:00:04]}  Rxd1# {[%clk 0:00:36]} 0-1


[Site "https://www.chess.com"]